bitfinex/quotes_SOLUSD_20251009
["timestamp","ask_amount","ask_price","bid_price","bid_amount"]
[1760020366744,5.94835834,220.59,220.56,0.69]
[1760020367053,5.94835834,220.67,220.57,0.69]
[1760020367253,34.18,220.74,220.57,0.69]
[1760020367425,5.94835834,220.66,220.57,0.69]
[1760020367726,5.94835834,220.67,220.57,0.69]
[1760020367932,5.94835834,220.67,220.58,15.86725904]
[1760020368130,5.94835834,220.67,220.59,0.69]
[1760020368327,20.8,220.72,220.59,0.69]
[1760020368640,5.94835834,220.62,220.47,35.70840219]
[1760020368825,36.65723589,220.72,220.55,10.87647521]
[1760020369029,5.94835834,220.68,220.57,10.87647521]
[1760020369327,5.94835834,220.68,220.58,0.69]
[1760020369528,4.5306683,220.72,220.58,0.69]
[1760020369738,5.94835834,220.68,220.58,0.69]
[1760020370053,5.94835834,220.68,220.59,15.86653972]
[1760020370232,5.94835834,220.68,220.6,0.69]
[1760020370434,4.53083231,220.71,220.6,0.69]
[1760020370632,5.94835834,220.64,220.52,10.87647521]
[1760020370830,5.94835834,220.6,220.53,0.69]
[1760020371228,20.8,220.62,220.48,5.22555878]
[1760020371455,5.94835834,220.54,220.48,5.22555878]
[1760020371630,5.94835834,220.52,220.48,4.53555878]
[1760020372047,5.94835834,220.49,220.47,15.7084022]
[1760020372234,20.8,220.56,220.47,20.24404862]
[1760020372431,5.94835834,220.5,220.47,20.24404862]
[1760020372645,5.94835834,220.48,220.47,15.7084022]
[1760020373151,15.86653972,220.59,220.47,15.7084022]
[1760020373152,34.34,220.49,220.47,15.7084022]
[1760020373449,5.94835834,220.48,220.47,15.7084022]
[1760020374041,10.48391712,220.48,220.47,15.7084022]
[1760020375134,31.28391712,220.48,220.47,15.7084022]
[1760020375351,5.94835834,220.48,220.47,15.7084022]
[1760020375854,4.53370811,220.57,220.47,20.9341667]
[1760020376038,5.94835834,220.51,220.47,20.9341667]
[1760020376240,4.53410599,220.56,220.48,0.69]
[1760020376444,5.94835834,220.55,220.48,0.69]
[1760020376652,5.94835834,220.59,220.48,0.69]
[1760020377237,5.94835834,220.57,220.48,0.69]
[1760020377833,5.94835834,220.61,220.49,10.87647521]
[1760020378033,20.8,220.62,220.5,0.69]
[1760020378237,3.99162482,220.55,220.51,4.53494172]
[1760020378450,8.52453453,220.61,220.52,0.69]
[1760020378646,3.99162482,220.54,220.52,0.69]
[1760020378855,24.28,220.69,220.51,15.87229603]
[1760020378856,3.99162482,220.56,220.53,0.69]
[1760020379168,3.99162482,220.55,220.48,11.33864898]
[1760020379330,3.99162482,220.55,220.49,5.22535307]
[1760020379647,3.99162482,220.53,220.49,5.22535307]
[1760020379848,3.99162482,220.55,220.5,0.69]
[1760020380040,3.99162482,220.54,220.5,0.69]
[1760020380241,3.99162482,220.52,220.47,15.7084022]
[1760020380541,3.99162482,220.48,220.47,15.7084022]
[1760020380747,20.8,220.54,220.47,15.7084022]
[1760020380955,24.86298047,220.77,220.48,0.69]
[1760020380956,10.87647521,220.66,220.48,0.69]
[1760020381136,0.5,220.52,220.48,0.69]
[1760020381338,3.99162482,220.57,220.49,0.69]
[1760020381564,20.8,220.63,220.49,0.69]
[1760020381767,3.99162482,220.58,220.49,0.69]
[1760020382281,3.99162482,220.58,220.5,4.53514739]
[1760020382461,3.99162482,220.58,220.51,0.69]
[1760020383158,4.53083231,220.71,220.52,10.87647521]
[1760020383385,3.99162482,220.67,220.54,10.87647521]
[1760020383668,3.99162482,220.71,220.56,10.87647521]
[1760020383844,3.99162482,220.67,220.57,0.69]
[1760020384166,3.99162482,220.62,220.57,0.69]
[1760020384346,4.53084697,220.71,220.58,0.69]
[1760020384871,3.99162482,220.69,220.58,0.69]
[1760020385379,3.99162482,220.61,220.55,0.69]
[1760020386679,3.99162482,220.58,220.5,0.69]
[1760020386969,20.8,220.67,220.5,0.69]
[1760020386970,3.99162482,220.57,220.5,0.69]
[1760020387175,3.99162482,220.56,220.5,0.69]
[1760020387375,3.99162482,220.57,220.5,0.69]
[1760020387565,3.99162482,220.58,220.5,0.69]
[1760020387763,20.8,220.67,220.5,0.69]
[1760020388282,3.99162482,220.6,220.5,0.69]
[1760020388591,15.86150638,220.66,220.51,15.87229603]
[1760020388793,3.99162482,220.58,220.51,15.87229603]
[1760020388972,15.86150638,220.66,220.51,15.87229603]
[1760020389179,3.99162482,220.58,220.51,15.87229603]
[1760020389572,20.8,220.63,220.51,4.53494172]
[1760020389783,3.99162482,220.59,220.52,0.69]
[1760020390701,3.99162482,220.58,220.52,0.69]
[1760020390863,3.99162482,220.57,220.52,0.69]
[1760020391185,3.99162482,220.57,220.52,5.22471941]
[1760020391365,3.99162482,220.58,220.52,4.53471941]
[1760020391670,3.99162482,220.61,220.53,0.69]
[1760020392796,3.99162482,220.61,220.54,4.53432483]
[1760020393090,3.99162482,220.61,220.54,15.87013692]
[1760020393295,11.32840659,220.69,220.54,15.87013692]
[1760020393476,10.87647521,220.78,220.55,0.7]
[1760020393678,3.99162482,220.67,220.55,0.7]
[1760020393920,3.99162482,220.65,220.55,0.7]
[1760020394119,3.99162482,220.66,220.57,20.8]
[1760020394323,3.99162482,220.69,220.58,0.7]
[1760020394625,3.99162482,220.73,220.62,20.8]
[1760020394920,3.99162482,220.75,220.64,15.86294416]
[1760020395122,3.99162482,220.71,220.63,5.23240737]
[1760020395293,29.30813113,220.8,220.63,4.53240737]
[1760020395493,3.99162482,220.71,220.63,15.86359533]
[1760020395711,3.99162482,220.72,220.63,16.56359533]
[1760020395909,15.85144926,220.8,220.63,16.56359533]
[1760020396287,3.99162482,220.66,220.61,38.7527115]
[1760020396490,3.99162482,220.63,220.58,0.7]
[1760020396698,3.99162482,220.61,220.54,34.92]
[1760020396889,3.99162482,220.66,220.55,16.56941735]
[1760020397086,3.99162482,220.66,220.56,0.7]
[1760020397511,20.8,220.73,220.56,0.7]
[1760020397813,3.99162482,220.66,220.56,0.7]
[1760020397989,20.8,220.73,220.56,0.7]
[1760020397990,36.65647623,220.73,220.56,0.7]
[1760020398191,3.99162482,220.61,220.55,4.53411924]
[1760020398506,3.99162482,220.61,220.53,5.23445311]
[1760020398804,3.99162482,220.59,220.52,4.53473607]
[1760020399191,3.99162482,220.61,220.53,0.7]
[1760020399598,20.8,220.7,220.54,10.87647521]
[1760020399791,3.99162482,220.63,220.55,0.7]
[1760020399992,3.99162482,220.61,220.52,16.57157626]
[1760020400199,3.99162482,220.59,220.52,16.57157626]
[1760020400400,3.99162482,220.59,220.52,50.75157626]
[1760020400721,20.8,220.7,220.53,0.7]
[1760020400929,3.99162482,220.61,220.54,15.87013692]
[1760020401104,20.8,220.69,220.54,15.87013692]
[1760020401312,3.99162482,220.62,220.55,0.7]
[1760020401729,3.99162482,220.6,220.52,34.18]
[1760020401919,3.99162482,220.58,220.51,38.71494172]
[1760020402228,15.85937982,220.69,220.52,0.7]
[1760020402526,19.99999999,220.8,220.53,10.87647521]
[1760020402707,3.99162482,220.66,220.55,10.87647521]
[1760020402911,3.99162482,220.66,220.57,15.8679784]
[1760020403123,3.99162482,220.67,220.58,0.7]
[1760020403327,3.99162482,220.69,220.58,34.9]
[1760020403526,50.05144926,220.8,220.59,0.7]
[1760020403736,3.99162482,220.7,220.59,0.7]
[1760020403936,20.8,220.77,220.59,0.7]
[1760020404121,3.99162482,220.72,220.6,10.87647521]
[1760020404439,50.05144926,220.8,220.61,0.7]
[1760020404643,3.99162482,220.73,220.61,0.7]
[1760020404937,3.99162482,220.71,220.61,0.7]
[1760020405150,20.8,220.77,220.62,4.53268062]
[1760020405151,3.99162482,220.7,220.62,4.53268062]
[1760020405310,3.99162482,220.71,220.63,0.7]
[1760020405832,4.52961374,220.77,220.63,0.7]
[1760020405833,3.99162482,220.72,220.63,0.7]
[1760020406531,4.52961374,220.77,220.63,0.7]
[1760020406728,3.99162482,220.72,220.63,0.7]
[1760020406927,3.99162482,220.67,220.57,0.7]
[1760020407128,3.99162482,220.63,220.56,34.12]
[1760020407318,3.99162482,220.63,220.56,38.65391325]
[1760020407517,3.99162482,220.63,220.56,34.12]
[1760020407922,3.99162482,220.62,220.56,38.65389307]
[1760020408315,3.99162482,220.62,220.56,34.12]
[1760020408509,4.53188542,220.66,220.56,38.65389249]
[1760020408510,3.99162482,220.6,220.56,38.65389249]
[1760020408822,3.99162482,220.6,220.52,4.53473607]
[1760020409032,3.99162482,220.58,220.52,15.87157626]
[1760020409242,20.8,220.67,220.52,4.53473607]
[1760020409243,3.99162482,220.56,220.52,4.53473607]
[1760020409547,20.8,220.62,220.47,15.7084022]
[1760020409751,3.99162482,220.53,220.47,15.7084022]
[1760020410111,20.8,220.62,220.47,16.4084022]
[1760020410316,20.8,220.62,220.47,15.7084022]
[1760020410317,3.99162482,220.61,220.47,15.7084022]
[1760020410520,3.99162482,220.53,220.47,15.7084022]
[1760020410727,3.99162482,220.53,220.47,20.24412729]
[1760020411216,3.99162482,220.61,220.47,20.24412729]
[1760020411217,20.8,220.66,220.47,20.24412729]
[1760020411456,3.99162482,220.54,220.47,20.24412729]
[1760020411743,3.99162482,220.54,220.47,15.7084022]
[1760020411918,20.8,220.62,220.48,0.7]
[1760020412116,3.99162482,220.55,220.48,0.7]
[1760020412540,3.99162482,220.61,220.48,0.7]
[1760020413256,7.93291024,220.6,220.48,5.23548485]
[1760020413445,3.99162482,220.53,220.47,15.7084022]
[1760020413638,3.99162482,220.49,220.47,15.7084022]
[1760020414323,20.8,220.48,220.47,15.7084022]
[1760020414726,3.99162482,220.48,220.47,15.7084022]
[1760020415113,20.8,220.48,220.47,15.7084022]
[1760020415333,6.25940421,220.48,220.47,15.7084022]
[1760020416042,2.26777939,220.48,220.47,15.7084022]
[1760020416246,6.25940421,220.48,220.47,15.7084022]
[1760020416538,3.99162482,220.48,220.47,15.7084022]
[1760020416926,5.66741411,220.56,220.47,15.7084022]
[1760020417143,3.99162482,220.52,220.47,20.24413827]
[1760020417315,3.99162482,220.5,220.47,15.7084022]
[1760020417617,3.99162482,220.48,220.47,15.7084022]
[1760020418021,20.8,220.53,220.47,15.7084022]
[1760020418417,3.99162482,220.48,220.47,15.7084022]
[1760020419429,10.25102903,220.48,220.47,15.7084022]
[1760020419631,20.8,220.45,220.3,0.7]
[1760020419830,3.99162482,220.36,220.3,0.7]
[1760020420033,3.99162482,220.36,220.3,5.23924782]
[1760020420343,20.8,220.45,220.31,0.7]
[1760020420533,3.99162482,220.37,220.31,0.7]
[1760020420734,19.99999999,220.55,220.31,0.7]
[1760020421038,3.99162482,220.45,220.32,10.87647521]
[1760020421348,44.74156269,220.57,220.36,10.87647521]
[1760020421349,3.99162482,220.47,220.36,10.87647521]
[1760020421520,3.99162482,220.61,220.36,10.87647521]
[1760020421521,3.99162482,220.49,220.37,0.7]
[1760020422236,3.99162482,220.52,220.38,10.87647521]
[1760020422419,3.99162482,220.52,220.4,10.87647521]
[1760020422624,3.99162482,220.46,220.39,0.66]
[1760020423042,3.99162482,220.5,220.39,0.66]
[1760020423236,3.99162482,220.46,220.39,0.66]
[1760020423437,0.90682384,220.55,220.39,5.19740965]
[1760020423726,3.99162482,220.48,220.4,0.66]
[1760020424561,0.90682384,220.55,220.4,0.66]
[1760020424732,3.99162482,220.47,220.4,0.66]
[1760020424929,3.99162482,220.45,220.4,0.66]
[1760020425167,3.99162482,220.43,220.39,4.53740965]
[1760020425342,3.99162482,220.43,220.38,0.68]
[1760020425534,3.99162482,220.43,220.38,4.53761684]
[1760020425732,3.99162482,220.43,220.38,5.21761684]
[1760020425940,0.90716697,220.47,220.29,20.8]
[1760020425941,3.99162482,220.39,220.35,5.21813235]
[1760020426135,3.99162482,220.39,220.35,4.53813235]
[1760020426334,3.99162482,220.39,220.36,0.68]
[1760020426562,3.99162482,220.38,220.33,4.53853878]
[1760020426748,3.99162482,220.38,220.34,0.68]
[1760020427272,20.8,220.45,220.35,0.68]
[1760020427450,3.99162482,220.38,220.31,0.68]
[1760020427953,0.90744604,220.4,220.31,0.68]
[1760020428157,3.99162482,220.37,220.31,0.68]
[1760020428652,23.16802332,220.54,220.32,10.87647521]
[1760020428845,3.99162482,220.43,220.33,0.68]
[1760020429149,3.99162482,220.39,220.33,0.68]
[1760020429357,0.90727635,220.44,220.33,5.21844221]
[1760020429556,3.99162482,220.39,220.33,5.21844221]
[1760020429860,0.90727635,220.44,220.33,5.21844221]
[1760020429861,3.99162482,220.42,220.34,0.68]
[1760020430058,3.99162482,220.44,220.35,10.87647521]
[1760020430254,0.90698834,220.51,220.36,0.68]
[1760020430441,3.99162482,220.44,220.36,0.68]
[1760020430638,3.99162482,220.46,220.37,10.87647521]
[1760020430832,2.36802332,220.54,220.39,10.87647521]
[1760020431030,3.64879305,220.59,220.37,10.87647521]
[1760020431031,3.17379174,220.56,220.4,0.68]
[1760020431232,3.99162482,220.48,220.4,0.68]
[1760020431462,3.99162482,220.48,220.41,15.87949729]
[1760020431666,3.99162482,220.48,220.41,5.21699922]
[1760020431865,3.99162482,220.46,220.41,5.21699922]
[1760020432065,21.70678273,220.56,220.42,0.68]
[1760020432369,2.36759407,220.57,220.43,10.87647521]
[1760020432552,3.99162482,220.51,220.44,0.68]
[1760020432867,3.99162482,220.52,220.45,10.87647521]
[1760020433064,3.99162482,220.61,220.46,0.68]
[1760020433262,3.99162482,220.55,220.47,10.87647521]
[1760020433472,0.90641287,220.65,220.49,10.87647521]
[1760020433646,3.99162482,220.59,220.51,10.87647521]
[1760020433847,3.99162482,220.59,220.52,0.68]
[1760020434473,3.99162482,220.57,220.52,0.68]
[1760020434659,20.8,220.64,220.53,0.68]
[1760020434859,3.99162482,220.56,220.53,0.68]
[1760020435060,3.99162482,220.56,220.49,45.69647521]
[1760020435253,20.8,220.65,220.49,0.68]
[1760020435457,3.99162482,220.55,220.49,0.68]
[1760020435759,3.17273262,220.63,220.49,5.21530626]
[1760020435958,3.99162482,220.55,220.49,16.55368895]
[1760020436659,3.99162482,220.55,220.49,0.68]
[1760020436853,3.99162482,220.55,220.46,45.01647521]
[1760020437066,3.17273262,220.63,220.46,11.55647521]
[1760020437268,3.99162482,220.53,220.46,15.41241321]
[1760020437475,0.90653612,220.62,220.48,4.53555878]
[1760020437773,3.99162482,220.55,220.49,0.68]
[1760020438146,5.95806744,220.5,220.45,0.68]
[1760020438346,20.8,220.59,220.46,0.68]
[1760020438776,5.95806744,220.51,220.46,0.68]
[1760020438946,5.95806744,220.51,220.47,0.68]
[1760020439142,5.95806744,220.5,220.42,15.41322183]
[1760020439448,5.95806744,220.54,220.46,10.87647521]
[1760020439660,20.8,220.64,220.47,0.68]
[1760020440063,5.95806744,220.52,220.47,0.68]
[1760020440366,5.95806744,220.48,220.42,10.87647521]
[1760020440577,5.95806744,220.46,220.41,0.68]
[1760020440786,5.95806744,220.44,220.42,10.87647521]
[1760020440959,5.95806744,220.42,220.35,0.68]
[1760020441276,5.95806744,220.36,220.33,0.68]
[1760020441474,5.95806744,220.34,220.3,5.21926463]
[1760020441646,0.90735867,220.42,220.27,0.68]
[1760020441842,5.95806744,220.35,220.28,0.68]
[1760020442046,20.8,220.47,220.28,0.68]
[1760020442255,5.95806744,220.38,220.29,10.87647521]
[1760020442445,5.95806744,220.38,220.31,10.87647521]
[1760020442658,5.95806744,220.38,220.32,0.68]
[1760020442853,5.95806744,220.36,220.32,0.68]
[1760020443168,5.95806744,220.37,220.32,0.68]
[1760020443356,5.95806744,220.5,220.27,11.3496527]
[1760020443357,5.95806744,220.34,220.27,10.87647521]
[1760020443553,5.95806744,220.34,220.29,10.87647521]
[1760020443766,5.95806744,220.34,220.3,0.68]
[1760020444248,5.95806744,220.34,220.31,0.68]
[1760020444457,20.8,220.42,220.31,0.68]
[1760020444655,13.74200181,220.45,220.31,0.68]
[1760020444656,5.95806744,220.37,220.31,0.68]
[1760020444851,5.95806744,220.33,220.28,10.87647521]
[1760020445052,5.95806744,220.32,220.26,0.68]
[1760020445275,5.95806744,220.3,220.24,0.1]
[1760020445572,5.95806744,220.3,220.24,15.99173274]
[1760020445867,5.95806744,220.3,220.24,0.78]
[1760020446047,20.8,220.42,220.24,0.1]
[1760020446247,5.95806744,220.28,220.24,4.64038065]
[1760020446665,23.16897999,220.43,220.25,0.68]
[1760020446871,5.95806744,220.3,220.25,0.68]
[1760020447185,20.8,220.38,220.25,0.68]
[1760020447351,5.95806744,220.35,220.26,10.87647521]
[1760020447681,5.95806744,220.35,220.28,26.76534391]
[1760020447982,5.95806744,220.33,220.28,26.76534391]
[1760020448178,5.95806744,220.29,220.28,4.53967677]
[1760020448351,5.95806744,220.29,220.26,4.54001782]
[1760020448677,5.95806744,220.29,220.24,11.45076034]
[1760020448678,5.95806744,220.27,220.24,0.1]
[1760020448988,5.95806744,220.25,220.24,0.1]
[1760020450380,20.8,220.32,220.24,0.1]
[1760020450566,5.95806744,220.25,220.24,0.1]
[1760020450764,20.8,220.34,220.24,0.1]
[1760020451085,5.95806744,220.25,220.24,0.1]
[1760020451796,20.8,220.33,220.24,0.1]
[1760020451959,5.95806744,220.25,220.24,0.1]
[1760020454555,5.95806744,220.25,220.22,2.79668758]
[1760020454556,20.8,220.23,220.22,2.79668758]
[1760020454770,26.75806744,220.23,220.22,2.79668758]
[1760020455374,60.93806744,220.23,220.22,2.79668758]
[1760020455574,66.89613488,220.23,220.22,2.79668758]
[1760020456073,60.97806744,220.23,220.22,2.79668758]
[1760020456280,5.95806744,220.23,220.22,2.79668758]
[1760020458086,11.91613488,220.23,220.22,2.79668758]
[1760020458282,46.13613488,220.23,220.22,2.79668758]
[1760020458989,2.32547249,219.99,219.9,11.36845087]
[1760020459164,2.32547249,219.99,219.9,0.67]
[1760020459361,5.95806744,219.92,219.9,0.67]
[1760020459566,2.32547249,219.99,219.9,0.67]
[1760020459774,7.56353993,219.99,219.93,10.87647521]
[1760020459972,1.60547249,219.99,219.95,10.87647521]
[1760020460181,2.372,220.12,220.0,10.87647521]
[1760020460482,2.372,220.12,220.02,10.87647521]
[1760020460672,2.372,220.12,220.04,10.87647521]
[1760020460866,2.372,220.12,220.06,10.87647521]
[1760020461071,2.372,220.12,220.08,10.87647521]
[1760020461378,5.95806744,220.09,220.03,0.67]
[1760020461581,5.95806744,220.04,219.98,0.67]
[1760020461771,5.95806744,220.0,219.98,0.67]
[1760020461968,5.95806744,220.0,219.98,5.21583819]
[1760020462171,5.95806744,220.0,219.98,0.67]
[1760020462380,0.7,220.08,219.99,0.67]
[1760020462586,5.95806744,220.01,219.93,15.42337649]
[1760020462884,5.95806744,219.96,219.93,4.54690128]
[1760020463092,0.7,220.08,219.94,0.67]
[1760020463380,5.95806744,220.03,219.95,10.87647521]
[1760020463587,5.95806744,220.03,219.96,0.67]
[1760020463768,5.95806744,220.03,219.97,26.78773583]
[1760020464086,5.95806744,220.06,219.99,10.87647521]
[1760020464272,3.072,220.12,220.01,10.87647521]
[1760020464472,5.95806744,220.06,220.01,10.87647521]
[1760020464785,5.95806744,220.06,220.02,0.67]
[1760020464987,5.95806744,220.04,219.99,0.67]
[1760020465165,5.95806744,220.02,219.97,4.54607446]
[1760020465367,5.95806744,220.0,219.95,4.54632836]
[1760020465675,5.95806744,219.98,219.96,0.67]
[1760020465875,5.95806744,219.98,219.97,4.54607446]
[1760020466081,5.95806744,220.01,219.97,16.58126062]
[1760020466307,5.95806744,219.99,219.92,0.67]
[1760020466593,5.95806744,219.97,219.92,0.67]
[1760020466968,0.7,220.02,219.93,0.67]
[1760020467194,5.95806744,219.99,219.93,0.67]
[1760020467581,5.95806744,219.97,219.93,0.67]
[1760020467784,0.7,220.03,219.95,4.54648783]
[1760020467973,5.95806744,219.98,219.94,0.67]
[1760020468176,5.95806744,220.05,219.9,45.71647521]
[1760020468374,5.95806744,219.97,219.91,11.54647521]
[1760020468992,5.95806744,219.95,219.91,0.67]
[1760020469286,5.95806744,219.93,219.9,4.54751247]
[1760020469488,5.95806744,219.91,219.9,4.54751247]
[1760020469688,0.7,219.98,219.9,0.67]
[1760020469689,5.95806744,219.93,219.9,0.67]
[1760020469889,5.95806744,219.93,219.87,0.67]
[1760020470494,5.95806744,219.96,219.88,10.87647521]
[1760020470706,0.7,220.02,219.9,10.87647521]
[1760020470873,5.95806744,219.99,219.9,10.87647521]
[1760020471082,0.7,220.1,219.92,10.87647521]
[1760020471280,40.10625362,220.2,219.94,10.87647521]
[1760020471603,40.10625362,220.2,219.85,57.74184823]
[1760020471604,5.95806744,220.03,219.96,10.87647521]
[1760020471809,5.95806744,219.99,219.91,0.67]
[1760020471979,5.95806744,219.96,219.91,0.67]
[1760020472179,21.5,220.02,219.91,0.67]
[1760020472400,0.7,220.02,219.92,10.87647521]
[1760020472594,0.7,220.06,219.93,0.67]
[1760020472768,5.95806744,220.03,219.93,0.67]
[1760020472973,5.95806744,219.99,219.94,10.87647521]
[1760020473201,5.95806744,219.97,219.91,5.21725259]
[1760020473874,0.7,220.05,219.92,11.54647521]
[1760020474073,5.95806744,220.0,219.93,0.67]
[1760020474304,5.95806744,219.98,219.93,0.67]
[1760020474470,5.95806744,219.98,219.91,10.87647521]
[1760020474672,0.7,220.03,219.91,10.87647521]
[1760020474673,5.95806744,219.99,219.92,0.67]
[1760020475097,19.99999999,220.15,219.92,0.67]
[1760020475285,5.95806744,220.01,219.93,35.02]
[1760020475484,0.7,220.05,219.94,10.87647521]
[1760020475704,5.95806744,220.0,219.94,11.54647521]
[1760020475884,0.7,220.05,219.95,15.91270742]
[1760020476083,0.7,220.08,219.96,10.87647521]
[1760020476277,5.95806744,220.01,219.96,10.87647521]
[1760020476476,5.95806744,220.01,219.97,0.67]
[1760020476683,5.95806744,220.01,219.95,50.91270742]
[1760020476881,5.95806744,219.97,219.93,5.21678551]
[1760020477087,20.8,220.06,219.94,46.60647521]
[1760020477088,0.7,220.06,219.94,46.60647521]
[1760020477287,6.65806744,220.05,219.89,0.67]
[1760020477501,20.8,220.02,219.89,0.67]
[1760020477810,21.5,220.05,219.91,10.87647521]
[1760020478099,0.7,220.09,219.94,10.87647521]
[1760020478290,21.5,220.09,219.95,0.67]
[1760020478488,5.95806744,220.03,219.95,0.67]
[1760020479001,5.95806744,220.01,219.95,0.67]
[1760020479198,0.7,220.04,219.93,10.87647521]
[1760020479620,5.95806744,219.99,219.93,10.87647521]
[1760020479792,0.7,220.04,219.93,10.87647521]
[1760020480303,5.95806744,219.99,219.93,10.87647521]
[1760020480491,5.95806744,219.97,219.93,10.87647521]
[1760020480698,0.7,220.02,219.94,0.67]
[1760020481080,0.7,220.07,219.95,15.91270742]
[1760020481280,5.95806744,220.01,219.96,0.67]
[1760020481503,5.95806744,220.01,219.97,0.67]
[1760020481706,0.7,220.1,219.98,0.67]
[1760020481908,5.95806744,220.07,219.99,10.87647521]
[1760020482121,5.95806744,220.07,220.01,10.87647521]
[1760020482419,0.2,220.34,220.07,10.87647521]
[1760020482583,0.2,220.34,220.09,10.87647521]
[1760020482584,0.67,220.23,220.09,10.87647521]
[1760020482912,5.95806744,220.19,220.1,0.7]
[1760020483082,5.95806744,220.22,220.12,10.87647521]
[1760020483284,0.67,220.32,220.14,10.87647521]
[1760020483593,5.95806744,220.29,220.16,10.87647521]
[1760020483779,0.67,220.32,220.18,10.87647521]
[1760020483986,5.95806744,220.29,220.2,10.87647521]
[1760020484186,0.67,220.32,220.21,4.54111984]
[1760020484403,5.95806744,220.28,220.2,0.7]
[1760020484710,5.95806744,220.28,220.21,10.87647521]
[1760020484891,0.67,220.32,220.21,10.87647521]
[1760020485097,5.95806744,220.27,220.21,10.87647521]
[1760020485408,5.95806744,220.27,220.07,19.99999999]
[1760020485409,5.95806744,220.22,220.16,35.14]
[1760020485607,5.95806744,220.18,220.14,10.87647521]
[1760020485918,0.66,220.24,220.13,0.65]
[1760020485919,5.95806744,220.16,220.13,10.87647521]
[1760020486288,5.95806744,220.16,220.14,0.65]
[1760020486615,0.66,220.22,220.12,10.87647521]
[1760020486821,5.95806744,220.17,220.12,10.87647521]
[1760020487017,5.95806744,220.15,220.12,11.52647521]
[1760020487188,5.95806744,220.15,220.1,10.87647521]
[1760020487388,0.66,220.21,220.12,10.87647521]
[1760020487610,5.95806744,220.16,220.12,10.87647521]
[1760020487805,20.8,220.26,220.13,0.65]
[1760020487989,0.66,220.26,220.14,10.87647521]
[1760020488196,5.95806744,220.19,220.14,10.87647521]
[1760020488393,5.95806744,220.17,220.13,15.41920717]
[1760020488589,5.95806744,220.17,220.14,0.65]
[1760020488792,5.95806744,220.15,220.13,10.87647521]
[1760020488999,0.66,220.23,220.13,10.87647521]
[1760020489000,5.95806744,220.18,220.14,0.65]
[1760020489494,0.66,220.23,220.14,0.65]
[1760020489818,5.95806744,220.19,220.14,0.65]
[1760020490110,0.66,220.28,220.16,10.87647521]
[1760020490288,5.95806744,220.25,220.18,15.41821378]
[1760020490488,5.95806744,220.25,220.18,50.45821378]
[1760020490687,0.66,220.32,220.2,10.87647521]
[1760020490912,0.66,220.32,220.18,50.93608501]
[1760020490913,5.95806744,220.29,220.22,10.87647521]
[1760020491509,0.2,220.34,220.19,10.87647521]
[1760020491510,5.95806744,220.25,220.19,10.87647521]
[1760020491897,5.95806744,220.23,220.19,10.87647521]
[1760020492209,5.95806744,220.23,220.17,4.54193789]
[1760020492396,5.95806744,220.25,220.18,11.52647521]
[1760020493002,5.95806744,220.27,220.19,0.65]
[1760020493200,5.95806744,220.31,220.19,0.65]
[1760020493823,0.2,220.34,220.21,10.87647521]
[1760020494030,0.2,220.34,220.23,10.87647521]
[1760020494329,0.2,220.34,220.26,15.89031144]
[1760020494628,0.2,220.34,220.27,11.52647521]
[1760020494988,0.2,220.34,220.29,10.87647521]
[1760020495400,6.15806744,220.34,220.29,35.0]
[1760020495597,5.95806744,220.32,220.25,10.87647521]
[1760020495816,0.66,220.33,220.24,45.89647521]
[1760020496030,5.95806744,220.32,220.26,10.87647521]
[1760020496526,5.95806744,220.32,220.27,4.53988287]
[1760020496826,0.2,220.34,220.29,10.87647521]
[1760020497319,0.2,220.34,220.3,0.65]
[1760020497493,0.2,220.34,220.31,45.85647521]
[1760020497688,0.2,220.34,220.32,0.65]
[1760020497907,0.2,220.34,220.33,4.68864657]
[1760020498413,0.2,220.34,220.32,10.87647521]
[1760020498915,0.2,220.34,220.31,4.53904687]
[1760020499094,0.2,220.34,220.31,39.51904687]
[1760020499509,0.2,220.34,220.31,34.98]
[1760020500411,3.99897151,220.32,220.29,34.94]
[1760020500597,0.2,220.34,220.3,10.87647521]
[1760020500803,0.66,220.33,220.29,34.94]